fUST/lending_fUST_20240702
["ID","MTS","AMOUNT","RATE_DAILY","PERIOD"]
[330857452,1719870647872,-500.0,0.00015888,2]
[330857453,1719870647884,-500.0,0.00015888,2]
[330857454,1719870647893,-500.0,0.00015888,2]
[330857455,1719870647902,-500.0,0.00015888,2]
[330857456,1719870647911,-500.0,0.00015888,2]
[330857457,1719870647924,-500.0,0.00015888,2]
[330857458,1719870647935,-501.03690978,0.00015888,2]
[330857459,1719870647945,-500.0,0.00015888,2]
[330857460,1719870647954,-500.0,0.00015888,2]
[330857461,1719870647964,-500.0,0.00015888,2]
[330857462,1719870647973,-456.528659,0.00015888,2]
[330857463,1719870647983,-500.0,0.00015888,2]
[330857464,1719870647992,-501.75183292,0.00015888,2]
[330857465,1719870648001,-506.52278895,0.00015888,2]
[330857466,1719870648012,-502.50647811,0.00015888,2]
[330857467,1719870648021,-500.8642231,0.00015888,2]
[330857468,1719870648031,-500.0,0.00015888,2]
[330857469,1719870648040,-506.72000574,0.00015888,2]
[330857470,1719870648050,-504.7771448,0.00015888,2]
[330857471,1719870648059,-500.0,0.00015888,2]
[330857472,1719870648069,-500.0,0.00015888,2]
[330857473,1719870648079,-500.0,0.00015888,2]
[330857474,1719870648088,-547.58654984,0.00015888,2]
[330857475,1719870648097,-500.0,0.00015888,2]
[330857476,1719870648107,-500.0,0.00015888,2]
[330857477,1719870648116,-500.0,0.00015888,2]
[330857478,1719870648125,-500.0,0.00015888,2]
[330857479,1719870648134,-181.65028937,0.00015888,2]
[330857480,1719870648143,-500.0,0.00015888,2]
[330857481,1719870648152,-540.8,0.00015888,2]
[330857482,1719870648161,-500.75879326,0.00015888,2]
[330857483,1719870648170,-500.0,0.00015888,2]
[330857484,1719870648180,-500.0,0.00015888,2]
[330857485,1719870648189,-401.53498091,0.00015888,2]
[330857486,1719870648199,-550.45402969,0.00015888,2]
[330857487,1719870648209,-500.0,0.00015888,2]
[330857488,1719870648218,-500.0,0.00015888,2]
[330857489,1719870648228,-500.0,0.00015888,2]
[330857490,1719870648237,-500.0,0.00015888,2]
[330857491,1719870648247,-500.0,0.00015888,2]
[330857493,1719870648256,-500.0,0.00015888,2]
[330857495,1719870648265,-500.0,0.00015888,2]
[330857497,1719870648275,-500.0,0.00015888,2]
[330857499,1719870648285,-500.0,0.00015888,2]
[330857501,1719870648294,-500.0,0.00015888,2]
[330857503,1719870648304,-501.48440662,0.00015888,2]
[330857505,1719870648313,-500.0,0.00015888,2]
[330857507,1719870648322,-502.23772376,0.00015888,2]
[330857509,1719870648331,-500.0,0.00015888,2]
[330857511,1719870648341,-504.02146778,0.00015888,2]
[330857513,1719870648350,-500.0,0.00015888,2]
[330857515,1719870648359,-500.0,0.00015888,2]
[330857517,1719870648368,-500.0,0.00015888,2]
[330857519,1719870648377,-500.0,0.00015888,2]
[330857521,1719870648388,-500.0,0.00015888,2]
[330857523,1719870648397,-503.099699,0.00015888,2]
[330857525,1719870648406,-500.0,0.00015888,2]
[330857527,1719870648415,-500.0,0.00015888,2]
[330857529,1719870648424,-500.0,0.00015888,2]
[330857531,1719870648433,-501.67563809,0.00015888,2]
[330857533,1719870648442,-504.90752404,0.00015888,2]
[330857535,1719870648452,-502.91835215,0.00015888,2]
[330857537,1719870648461,-171.05773635,0.00015888,2]
[330857539,1719870648470,-500.78947675,0.00015888,2]
[330857541,1719870648479,-500.0,0.00015888,2]
[330857543,1719870648488,-500.0,0.00015888,2]
[330857545,1719870648498,-500.0,0.00015888,2]
[330857547,1719870648507,-500.0,0.00015888,2]
[330857549,1719870648516,-500.0,0.00015888,2]
[330857551,1719870648526,-502.99011114,0.00015888,2]
[330857553,1719870648535,-500.0,0.00015888,2]
[330857555,1719870648544,-500.698533,0.00015888,2]
[330857557,1719870648553,-500.0,0.00015888,2]
[330857559,1719870648563,-500.0,0.00015888,2]
[330857561,1719870648572,-502.58602937,0.00015888,2]
[330857563,1719870648582,-503.49854888,0.00015888,2]
[330857565,1719870648590,-500.0,0.00015888,2]
[330857567,1719870648599,-500.0,0.00015888,2]
[330857569,1719870648609,-500.0,0.00015888,2]
[330857571,1719870648618,-501.72504786,0.00015888,2]
[330857573,1719870648627,-151.0,0.00015888,2]
[330857575,1719870648639,-151.0,0.00015888,2]
[330857577,1719870648648,-151.0,0.00015888,2]
[330857579,1719870648657,-151.0,0.00015888,2]
[330857581,1719870648669,-151.0,0.00015888,2]
[330857583,1719870648678,-500.0,0.00015888,2]
[330857585,1719870648687,-501.87077389,0.00015888,2]
[330857587,1719870648696,-245.0,0.00015888,2]
[330857589,1719870648706,-500.0,0.00015888,2]
[330857591,1719870648715,-503.16433019,0.00015888,2]
[330857593,1719870648724,-504.67838334,0.00015888,2]
[330857595,1719870648734,-746.74,0.00015888,2]
[330857597,1719870648743,-500.0,0.00015888,2]
[330857599,1719870648752,-500.0,0.00015888,2]
[330857601,1719870648762,-500.0,0.00015888,2]
[330857603,1719870648771,-502.15423441,0.00015888,2]
[330857605,1719870648781,-502.44143232,0.00015888,2]
[330857607,1719870648790,-526.93,0.00015888,2]
[330857609,1719870648799,-500.0,0.00015888,2]
[330857611,1719870648809,-500.0,0.00015888,2]
[330857613,1719870648818,-503.29625878,0.00015888,2]
[330857615,1719870648827,-202.26283746,0.00015888,2]
[330857617,1719870648839,-500.0,0.00015888,2]
[330857619,1719870648852,-500.0,0.00015888,2]
[330857621,1719870648862,-500.0,0.00015888,2]
[330857623,1719870648872,-500.0,0.00015888,2]
[330857625,1719870648883,-502.39210792,0.00015888,2]
[330857627,1719870648893,-504.63985186,0.00015888,2]
[330857629,1719870648902,-500.0,0.00015888,2]
[330857631,1719870648911,-500.0,0.00015888,2]
[330857633,1719870648922,-519.40135593,0.00015888,2]
[330857635,1719870648932,-190.48205183,0.00015888,2]
[330857637,1719870648941,-504.10629183,0.00015888,2]
[330857639,1719870648951,-500.0,0.00015888,2]
[330857641,1719870648960,-500.0,0.00015888,2]
[330857643,1719870648970,-500.0,0.00015888,2]
[330857645,1719870648979,-502.76128656,0.00015888,2]
[330857647,1719870648989,-500.0,0.00015888,2]
[330857648,1719870648998,-500.0,0.00015888,2]
[330857651,1719870649008,-504.96957213,0.00015888,2]
[330857652,1719870649017,-501.2638778,0.00015888,2]
[330857655,1719870649027,-505.02211839,0.00015888,2]
[330857656,1719870649036,-500.0,0.00015888,2]
[330857658,1719870649046,-500.0,0.00015888,2]
[330857660,1719870649055,-500.0,0.00015888,2]
[330857662,1719870649065,-502.62975983,0.00015888,2]
[330857665,1719870649074,-502.41992687,0.00015888,2]
[330857667,1719870649084,-500.0,0.00015888,2]
[330857669,1719870649094,-500.0,0.00015888,2]
[330857670,1719870649103,-502.78021154,0.00015888,2]
[330857673,1719870649113,-504.39409701,0.00015888,2]
[330857675,1719870649123,-500.0,0.00015888,2]
[330857677,1719870649133,-502.66613274,0.00015888,2]
[330857679,1719870649142,-500.0,0.00015888,2]
[330857681,1719870649151,-503.58503591,0.00015888,2]
[330857683,1719870649160,-502.0646132,0.00015888,2]
[330857685,1719870649170,-500.0,0.00015888,2]
[330857687,1719870649179,-500.0,0.00015888,2]
[330857700,1719870649294,-502.89496129,0.00015888,2]
[330857702,1719870649304,-500.0,0.00015888,2]
[330857704,1719870649314,-500.0,0.00015888,2]
[330857706,1719870649323,-500.89166509,0.00015888,2]
[330857708,1719870649332,-628.34632476,0.00015888,2]
[330857710,1719870649341,-580.09,0.00015888,2]
[330857712,1719870649350,-503.87755061,0.00015888,2]
[330857714,1719870649360,-500.0,0.00015888,2]
[330857716,1719870649369,-287.17143285,0.00015888,2]
[330857718,1719870649378,-502.63474881,0.00015888,2]
[330857720,1719870649389,-500.0,0.00015888,2]
[330857722,1719870649398,-551.78,0.00015888,2]
[330857724,1719870649407,-500.0,0.00015888,2]
[330857726,1719870649416,-500.0,0.00015888,2]
[330857728,1719870649425,-500.0,0.00015888,2]
[330857730,1719870649434,-500.0,0.00015888,2]
[330857732,1719870649443,-500.0,0.00015888,2]
[330857734,1719870649452,-652.59,0.00015888,2]
[330857736,1719870649461,-500.0,0.00015888,2]
[330857738,1719870649470,-500.0,0.00015888,2]
[330857740,1719870649479,-502.41625928,0.00015888,2]
[330857742,1719870649488,-4463.2,0.00015888,2]
[330857744,1719870649499,-500.0,0.00015888,2]
[330857746,1719870649508,-503.08338273,0.00015888,2]
[330857748,1719870649516,-500.0,0.00015888,2]
[330857750,1719870649525,-500.0,0.00015888,2]
[330857752,1719870649534,-154.82195475,0.00015888,2]
[330857754,1719870649543,-500.0,0.00015888,2]
[330857756,1719870649551,-469.15360856,0.00015888,2]
[330857758,1719870649560,-500.0,0.00015888,2]
[330857760,1719870649569,-502.83361996,0.00015888,2]
[330857762,1719870649578,-501.99489651,0.00015888,2]
[330857764,1719870649587,-500.0,0.00015888,2]
[330857766,1719870649596,-500.0,0.00015888,2]
[330857768,1719870649605,-194.99584281,0.00015888,2]
[330857770,1719870649614,-500.0,0.00015888,2]
[330857772,1719870649623,-500.0,0.00015888,2]
[330857774,1719870649632,-500.0,0.00015888,2]
[330857776,1719870649641,-500.0,0.00015888,2]
[330857778,1719870649650,-500.0,0.00015888,2]
[330857780,1719870649658,-500.0,0.00015888,2]
[330857782,1719870649667,-500.0,0.00015888,2]
[330857784,1719870649676,-663.07,0.00015888,2]
[330857786,1719870649685,-500.0,0.00015888,2]
[330857788,1719870649694,-500.0,0.00015888,2]
[330857790,1719870649703,-151.0,0.00015888,2]
[330857792,1719870649712,-151.0,0.00015888,2]
[330857794,1719870649720,-956.41,0.00015888,2]
[330857796,1719870649729,-504.49788885,0.00015888,2]
[330857798,1719870649738,-570.69085053,0.00015888,2]
[330857800,1719870649747,-500.0,0.00015888,2]
[330857802,1719870649756,-260.04171659,0.00015888,2]
[330857804,1719870649765,-500.0,0.00015888,2]
[330857806,1719870649774,-500.0,0.00015888,2]
[330857808,1719870649783,-500.0,0.00015888,2]
[330857810,1719870649792,-500.0,0.00015888,2]
[330857812,1719870649802,-500.0,0.00015888,2]
[330857814,1719870649811,-812.86,0.00015888,2]
[330857816,1719870649820,-500.0,0.00015888,2]
[330857818,1719870649829,-174.90308051,0.00015888,2]
[330857820,1719870649839,-1407.9,0.00015888,2]
[330857822,1719870649852,-500.0,0.00015888,2]
[330857824,1719870649861,-500.0,0.00015888,2]
[330857826,1719870649870,-500.0,0.00015888,2]
[330857828,1719870649880,-500.0,0.00015888,2]
[330857830,1719870649890,-500.0,0.00015888,2]
[330857832,1719870649899,-500.0,0.00015888,2]
[330857834,1719870649909,-500.0,0.00015888,2]
[330857836,1719870649921,-500.0,0.00015888,2]
[330857838,1719870649932,-500.0,0.00015888,2]
[330857840,1719870649942,-576.61628358,0.00015888,2]
[330857842,1719870649950,-501.54509184,0.00015888,2]
[330857844,1719870649960,-500.0,0.00015888,2]
[330857846,1719870649970,-501.88833453,0.00015888,2]
[330857848,1719870649980,-500.0,0.00015888,2]
[330857850,1719870649989,-500.0,0.00015888,2]
[330857852,1719870649998,-500.0,0.00015888,2]
[330857854,1719870650007,-500.0,0.00015888,2]
[330857856,1719870650016,-500.0,0.00015888,2]
[330857858,1719870650026,-500.0,0.00015888,2]
[330857860,1719870650035,-500.0,0.00015888,2]
[330857862,1719870650044,-500.0,0.00015888,2]
[330857864,1719870650054,-500.0,0.00015888,2]
[330857866,1719870650063,-500.0,0.00015888,2]
[330857868,1719870650072,-577.46,0.00015888,2]
[330857869,1719870650082,-500.0,0.00015888,2]
[330857871,1719870650092,-500.0,0.00015888,2]
[330857873,1719870650101,-1916.68,0.00015888,2]
[330857875,1719870650110,-500.0,0.00015888,2]
[330857877,1719870650120,-500.0,0.00015888,2]
[330857879,1719870650129,-500.0,0.00015888,2]
[330857881,1719870650139,-540.09,0.00015888,2]
[330857883,1719870650148,-500.0,0.00015888,2]
[330857885,1719870650157,-500.0,0.00015888,2]
[330857888,1719870650167,-193.0862847,0.00015888,2]
[330857890,1719870650176,-500.0,0.00015888,2]
[330857891,1719870650185,-500.0,0.00015888,2]
[330857893,1719870650194,-438.59471059,0.00015888,2]
[330857895,1719870650204,-500.0,0.00015888,2]
[330857898,1719870650213,-500.0,0.00015888,2]
[330857899,1719870650222,-500.0,0.00015888,2]
[330857901,1719870650231,-500.0,0.00015888,2]
[330857903,1719870650240,-446.89698853,0.00015888,2]
[330857905,1719870650249,-503.54513192,0.00015888,2]
[330857907,1719870650258,-500.0,0.00015888,2]
[330857909,1719870650268,-551.7,0.00015888,2]
[330857911,1719870650277,-290.1478854,0.00015889,2]
[330857913,1719870650287,-500.0,0.00015889,2]
[330857915,1719870650296,-302.45747978,0.00015889,2]
[330857917,1719870650306,-500.0,0.00015889,2]
[330857919,1719870650315,-502.3755387,0.00015889,2]
[330857921,1719870650324,-500.0,0.00015889,2]
[330857923,1719870650333,-268.38666986,0.00015889,2]
[330857925,1719870650342,-500.0,0.00015889,2]
[330857927,1719870650351,-502.56012376,0.00015889,2]
[330857929,1719870650360,-500.0,0.00015889,2]
[330857931,1719870650371,-500.0,0.00015889,2]
[330857933,1719870650379,-500.0,0.00015889,2]
[330857935,1719870650390,-515.52759789,0.00015889,2]
[330857937,1719870650399,-500.0,0.00015889,2]
[330857939,1719870650408,-1916.68,0.00015889,2]
[330857941,1719870650417,-1916.68,0.00015889,2]
[330857943,1719870650426,-500.0,0.00015889,2]
[330857946,1719870650435,-500.0,0.00015889,2]
[330857948,1719870650444,-1607.67,0.00015889,2]
[330857950,1719870650453,-8232.71,0.00015889,2]
[330857952,1719870650463,-500.0,0.00015889,2]
[330857953,1719870650472,-841.07,0.00015889,2]
[330857955,1719870650481,-500.0,0.00015889,2]
[330857958,1719870650491,-500.0,0.00015889,2]
[330857959,1719870650500,-500.0,0.00015889,2]
[330857961,1719870650509,-500.70105644,0.00015889,2]
[330857963,1719870650518,-3928.4,0.00015889,2]
[330857965,1719870650527,-500.0,0.00015889,2]
[330857967,1719870650537,-500.0,0.00015889,2]
[330857969,1719870650546,-700.29575309,0.0001589,2]
[330857971,1719870650555,-500.0,0.0001589,2]
[330857973,1719870650565,-607.07,0.0001589,2]
[330857975,1719870650575,-500.0,0.0001589,2]
[330857977,1719870650584,-578.79,0.0001589,2]
[330857979,1719870650593,-500.0,0.0001589,2]
[330857981,1719870650602,-5183.29,0.0001589,2]
[330857983,1719870650612,-2625.1,0.0001589,2]
[330857986,1719870650622,-1916.68,0.00015891,2]
[330857987,1719870650631,-153.155,0.00015927,2]
[330857989,1719870650640,-877.0,0.00015927,2]
[330857991,1719870650649,-151.546,0.00015927,2]
[330857993,1719870650658,-573.24096355,0.00015995,2]
[330857995,1719870650667,-1000.0,0.00016,8]
[330857997,1719870650677,-500.0,0.00016,2]
[330857999,1719870650687,-413.2161063,0.00016,2]
[330858001,1719870650696,-306.8349406,0.00016,2]
[330858003,1719870650705,-620.00007721,0.00016047,2]
[330858005,1719870650714,-1916.68,0.00016099,2]
[330858007,1719870650723,-1916.68,0.00016099,2]
[330858009,1719870650732,-1916.68,0.00016099,2]
[330858011,1719870650741,-120524.20853497,0.000161,2]
[330858013,1719870650751,-1916.68,0.00016253,2]
[330858015,1719870650760,-1916.68,0.00016253,2]
[330858017,1719870650769,-1916.68,0.00016253,2]
[330858019,1719870650778,-27.09781331,0.00016254,2]
[330858022,1719870650797,-10957.28726624,0.00016254,2]
[330858899,1719870761727,247.47525819,0.00014999,2]
[330858900,1719870788185,3074.84022806,0.00014999,2]
[330858901,1719870810128,4709.14955195,0.00014999,2]
[330858902,1719870841258,5724.9497448,0.00014998,2]
[330858903,1719870854315,3126.93373757,0.00014999,4]
[330858904,1719870857564,1827.78631174,0.00014999,2]
[330858905,1719870858994,165.00553502,0.00014999,2]
[330858906,1719870866177,220.08911463,0.00014999,2]
[330858907,1719870867450,724.58678945,0.00014999,2]
[330858908,1719870868918,1104.14006919,0.00015,2]
[330858909,1719870881202,196.38652702,0.00014999,2]
[330858910,1719870895462,195.45518522,0.00014999,2]
[330858911,1719870903047,402.47506882,0.00014999,2]
[330858912,1719870920081,244.97894054,0.00014999,2]
[330858913,1719870922988,239.44235135,0.00014999,2]
[330858914,1719870934028,518.85515067,0.00014999,2]
[330858915,1719870945500,154.88383712,0.00014999,2]
[330858916,1719870963374,818.21430719,0.00014999,2]
[330858918,1719870975862,373.8816229,0.00014999,2]
[330858919,1719870976190,12623.0178898,0.00014887,2]
[330858920,1719871016063,359.7349756,0.00014999,2]
[330858921,1719871026642,1117.87472833,0.00014999,2]
[330858923,1719871034098,378.26805599,0.00015,2]
[330858924,1719871040458,248.22821555,0.00014999,2]
[330858925,1719871044137,564.59780208,0.00014999,2]
[330858926,1719871067049,1083.66412041,0.00014999,2]
[330858927,1719871082198,174.58592822,0.00014999,2]
[330858928,1719871115517,309.61295905,0.00014999,2]
[330858929,1719871139927,500.0,0.00014999,2]
[330858930,1719871207970,3000.0,0.00014887,2]
[330858931,1719871219640,933.08575257,0.00014999,2]
[330858932,1719871245813,10915.07478394,0.00014999,2]
[330858933,1719871265602,181.6707771,0.00014999,2]
[330858934,1719871292873,5572.34984345,0.00014998,2]
[330858935,1719871395410,818.21430719,0.00014999,2]
[330858936,1719871544820,560.28410646,0.00014999,2]
[330858953,1719871831913,-315.71,0.00015866,2]
[330858954,1719871831926,-561.29,0.00015866,2]
[330858955,1719871831937,-500.0,0.00015883,2]
[330858956,1719871831946,-515.85378089,0.00015883,2]
[330858957,1719871831955,-500.0,0.00015883,2]
[330858958,1719871831965,-520.09,0.00015883,2]
[330858959,1719871831975,-500.0,0.00015883,2]
[330858960,1719871831984,-695.51459335,0.00015883,2]
[330858961,1719871831996,-1189.22540665,0.00015883,2]
[330858962,1719871832006,-143.06219368,0.00015883,2]
[330858963,1719871832018,-356.93780632,0.00015883,2]
[330858964,1719871832027,-1033.06219368,0.00015883,2]
[330858984,1719871838323,-547.46582149,0.00015883,2]
[330858986,1719871838335,-1185.11216404,0.00015883,2]
[330858988,1719871838347,-594.67382326,0.00015883,2]
[330858990,1719871838359,-5266.56,0.00015883,2]
[330859076,1719871840295,-512.99,0.00015883,2]
[330859079,1719871840306,-861.075,0.00015883,2]
[330859090,1719871843557,-741.73099753,0.00015883,2]
[330859091,1719871843567,-1065.2,0.00015883,2]
[330859092,1719871843576,-2059.57,0.00015883,2]
[330859093,1719871843586,-662.62,0.00015883,2]
[330859094,1719871843595,-500.0,0.00015883,2]
[330859095,1719871843604,-500.0,0.00015883,2]
[330859096,1719871843614,-500.0,0.00015883,2]
[330859097,1719871843623,-5238.87,0.00015883,2]
[330859098,1719871843633,-500.0,0.00015884,2]
[330859099,1719871843642,-500.0,0.00015884,2]
[330859100,1719871843651,-500.0,0.00015884,2]
[330859101,1719871843661,-500.0,0.00015884,2]
[330859102,1719871843670,-500.0,0.00015884,2]
[330859103,1719871843678,-264.23606007,0.00015884,2]
[330859104,1719871843691,-235.76393993,0.00015884,2]
[330859105,1719871843700,-33.58646607,0.00015884,2]
[330859106,1719871843870,-466.41353393,0.00015884,2]
[330859107,1719871843880,-500.0,0.00015884,2]
[330859108,1719871843889,-51.93160268,0.00015884,2]
[330859182,1719871846141,-225.64,0.00015883,2]
[330859184,1719871846151,-448.06839732,0.00015884,2]
[330859186,1719871846160,-500.0,0.00015884,2]
[330859188,1719871846170,-275.07232232,0.00015884,2]
[330859190,1719871846181,-500.0,0.00015884,2]
[330859192,1719871846190,-261.69641165,0.00015884,2]
[330859194,1719871846208,-378.58358835,0.00015884,2]
[330859196,1719871846218,-500.0,0.00015884,2]
[330859198,1719871846227,-500.0,0.00015884,2]
[330859200,1719871846239,-489.19997459,0.00015884,2]
[330859202,1719871846249,-1020.71,0.00015884,2]
[330859205,1719871846259,-500.0,0.00015884,2]
[330859206,1719871846268,-500.0,0.00015884,2]
[330859209,1719871846280,-567.85,0.00015884,2]
[330859211,1719871846290,-210.52,0.00015884,2]
[330859213,1719871846300,-500.0,0.00015884,2]
[330859215,1719871846310,-500.0,0.00015884,2]
[330859217,1719871846319,-500.0,0.00015884,2]
[330859218,1719871846328,-500.0,0.00015884,2]
[330859220,1719871846338,-500.0,0.00015884,2]
[330859222,1719871846347,-500.0,0.00015884,2]
[330859224,1719871846357,-500.0,0.00015884,2]
[330859226,1719871846366,-517.21,0.00015884,2]
[330859228,1719871846376,-500.0,0.00015884,2]
[330859230,1719871846386,-563.88501302,0.00015884,2]
[330859232,1719871846397,-500.0,0.00015884,2]
[330859234,1719871846407,-707.92,0.00015884,2]
[330859236,1719871846416,-500.0,0.00015884,2]
[330859238,1719871846425,-500.0,0.00015884,2]
[330859240,1719871846435,-1065.11,0.00015884,2]
[330859242,1719871846445,-500.0,0.00015884,2]
[330859245,1719871846454,-500.0,0.00015884,2]
[330859247,1719871846464,-500.0,0.00015884,2]
[330859248,1719871846474,-505.82178899,0.00015884,2]
[330859250,1719871846483,-500.0,0.00015884,2]
[330859252,1719871846492,-500.0,0.00015884,2]
[330859254,1719871846502,-500.0,0.00015884,2]
[330859256,1719871846511,-500.0,0.00015884,2]
[330859258,1719871846521,-500.0,0.00015884,2]
[330859260,1719871846530,-500.0,0.00015884,2]
[330859263,1719871846541,-506.92624368,0.00015884,2]
[330859265,1719871846555,-500.0,0.00015884,2]
[330859267,1719871846564,-605.5,0.00015884,2]
[330859269,1719871846573,-500.0,0.00015884,2]
[330859271,1719871846582,-506.45213534,0.00015884,2]
[330859273,1719871846592,-500.0,0.00015884,2]
[330859275,1719871846601,-500.0,0.00015884,2]
[330859276,1719871846611,-500.0,0.00015884,2]
[330859278,1719871846621,-500.0,0.00015884,2]
[330859280,1719871846630,-560.39,0.00015884,2]
[330859282,1719871846640,-500.0,0.00015884,2]
[330859283,1719871846650,-500.0,0.00015884,2]
[330859284,1719871846660,-500.0,0.00015884,2]
[330859286,1719871846669,-544.32,0.00015884,2]
[330859288,1719871846679,-500.0,0.00015884,2]
[330859290,1719871846688,-500.0,0.00015884,2]
[330859292,1719871846698,-500.0,0.00015884,2]
[330859293,1719871846707,-500.0,0.00015884,2]
[330859294,1719871846719,-500.0,0.00015884,2]
[330859295,1719871846729,-500.0,0.00015884,2]
[330859296,1719871846739,-500.0,0.00015884,2]
[330859297,1719871846749,-500.0,0.00015884,2]
[330859298,1719871846759,-501.44111769,0.00015884,2]
[330859299,1719871846770,-500.0,0.00015884,2]
[330859300,1719871846779,-500.0,0.00015884,2]
[330859301,1719871846790,-500.0,0.00015884,2]
[330859302,1719871846800,-500.0,0.00015884,2]
[330859303,1719871846811,-500.0,0.00015884,2]
[330859304,1719871846822,-500.0,0.00015884,2]
[330859305,1719871846835,-500.0,0.00015884,2]
[330859306,1719871846845,-500.0,0.00015884,2]
[330859307,1719871846854,-500.0,0.00015884,2]
[330859308,1719871846864,-500.0,0.00015884,2]
[330859309,1719871846873,-500.0,0.00015884,2]
[330859310,1719871846884,-500.0,0.00015884,2]
[330859311,1719871846893,-500.0,0.00015884,2]
[330859312,1719871846903,-627.95,0.00015884,2]
[330859313,1719871846912,-500.0,0.00015884,2]
[330859314,1719871846922,-500.0,0.00015884,2]
[330859315,1719871846932,-501.77381646,0.00015884,2]
[330859316,1719871846941,-500.0,0.00015884,2]
[330859317,1719871846950,-500.0,0.00015884,2]
[330859318,1719871846959,-500.0,0.00015884,2]
[330859319,1719871846969,-500.0,0.00015884,2]
[330859320,1719871846978,-500.0,0.00015884,2]
[330859321,1719871846987,-500.0,0.00015884,2]
[330859322,1719871846997,-500.0,0.00015884,2]
[330859323,1719871847007,-500.0,0.00015884,2]
[330859324,1719871847016,-500.0,0.00015884,2]
[330859325,1719871847025,-337.43540898,0.00015884,2]
[330859326,1719871847035,-500.0,0.00015884,2]
[330859327,1719871847044,-500.0,0.00015884,2]
[330859328,1719871847054,-500.0,0.00015884,2]
[330859329,1719871847063,-591.82,0.00015884,2]
[330859330,1719871847072,-500.0,0.00015884,2]
[330859331,1719871847082,-516.16536763,0.00015884,2]
[330859332,1719871847092,-500.0,0.00015884,2]
[330859333,1719871847101,-500.0,0.00015884,2]
[330859334,1719871847111,-500.0,0.00015884,2]
[330859335,1719871847120,-500.0,0.00015884,2]
[330859336,1719871847130,-500.0,0.00015884,2]
[330859337,1719871847140,-500.0,0.00015884,2]
[330859338,1719871847150,-500.0,0.00015884,2]
[330859339,1719871847160,-500.0,0.00015884,2]
[330859340,1719871847169,-500.0,0.00015884,2]
[330859341,1719871847179,-500.0,0.00015884,2]
[330859342,1719871847188,-500.0,0.00015884,2]
[330859343,1719871847201,-500.0,0.00015884,2]
[330859344,1719871847211,-169.09726661,0.00015884,2]
[330859345,1719871847220,-500.0,0.00015884,2]
[330859346,1719871847230,-500.0,0.00015884,2]
[330859347,1719871847240,-500.0,0.00015884,2]
[330859348,1719871847249,-500.0,0.00015884,2]
[330859349,1719871847259,-500.0,0.00015884,2]
[330859350,1719871847268,-500.0,0.00015884,2]
[330859351,1719871847278,-500.0,0.00015884,2]
[330859352,1719871847288,-500.0,0.00015884,2]
[330859353,1719871847298,-501.78,0.00015884,2]
[330859354,1719871847308,-500.0,0.00015884,2]
[330859355,1719871847317,-500.0,0.00015884,2]
[330859356,1719871847326,-500.0,0.00015884,2]
[330859357,1719871847335,-500.0,0.00015884,2]
[330859358,1719871847345,-500.0,0.00015884,2]
[330859359,1719871847354,-500.0,0.00015884,2]
[330859360,1719871847363,-620.27,0.00015884,2]
[330859361,1719871847373,-500.0,0.00015884,2]
[330859362,1719871847383,-500.0,0.00015884,2]